bitfinex/quotes_BTCUSD_20250330
["timestamp","ask_amount","ask_price","bid_price","bid_amount"]
[1743340859398,0.27761382,83316.0,83315.0,0.0158021]
[1743340859605,0.29642569,83316.0,83315.0,0.008]
[1743340860687,0.34282569,83316.0,83315.0,0.008]
[1743340861464,0.31757284,83316.0,83315.0,0.004]
[1743340862872,0.240059,83313.0,83310.0,0.000337]
[1743340863045,0.012003,83311.0,83310.0,0.000337]
[1743340864315,0.012003,83311.0,83310.0,0.005337]
[1743340864532,0.07358758,83311.0,83310.0,0.005337]
[1743340864761,0.0759852,83311.0,83310.0,0.005337]
[1743340864959,0.37358758,83311.0,83310.0,0.005337]
[1743340865111,0.50058758,83311.0,83310.0,0.005337]
[1743340866130,0.50058758,83311.0,83310.0,0.002337]
[1743340866528,0.50058758,83311.0,83310.0,0.000337]
[1743340867141,0.50058758,83311.0,83310.0,0.003337]
[1743340867766,0.50058758,83311.0,83310.0,0.000337]
[1743340868483,0.91688758,83311.0,83310.0,0.000337]
[1743340869117,0.855303,83311.0,83310.0,0.000337]
[1743340870241,0.87412041,83311.0,83310.0,0.000337]
[1743340873368,0.82772041,83311.0,83310.0,0.000337]
[1743340876592,0.808903,83311.0,83310.0,0.000337]
[1743340879364,0.82772014,83311.0,83310.0,0.000337]
[1743340879558,0.8701135,83311.0,83310.0,0.000337]
[1743340881930,0.9062175,83311.0,83310.0,0.000337]
[1743340883387,0.9610175,83311.0,83310.0,1e-06]
[1743340883594,1.8043695,83311.0,83310.0,1e-06]
[1743340884575,0.552133,83289.0,83288.0,0.0003372]
[1743340884779,0.968433,83289.0,83288.0,0.0003372]
[1743340885441,0.98725432,83289.0,83288.0,0.0003372]
[1743340886049,0.98725432,83289.0,83288.0,0.00080905]
[1743340886454,0.968433,83289.0,83288.0,0.00080905]
[1743340886654,1.08871783,83289.0,83288.0,0.00080905]
[1743340887076,1.08871783,83289.0,83288.0,0.00180905]
[1743340887651,1.08871783,83289.0,83288.0,0.00280905]
[1743340888922,1.10087825,83289.0,83288.0,0.00280905]
[1743340890572,0.98059342,83289.0,83288.0,0.00280905]
[1743340890846,0.98725448,83289.0,83288.0,0.00280905]
[1743340891611,0.99916402,83289.0,83288.0,0.00280905]
[1743340892568,0.98725448,83289.0,83288.0,0.00280905]
[1743340894487,0.99909636,83289.0,83288.0,0.00280905]
[1743340895438,1.08587582,83289.0,83288.0,0.00280905]
[1743340899787,1.10469739,83289.0,83288.0,0.00280905]
[1743340900199,1.18169739,83289.0,83288.0,5e-08]
[1743340900406,1.2181063,83289.0,83288.0,5e-08]
[1743340900710,1.2662063,83289.0,83288.0,5e-08]
[1743340901270,1.23479739,83289.0,83288.0,5e-08]
[1743340902374,0.252197,83268.0,83267.0,0.0455]
[1743340902556,0.252197,83268.0,83267.0,0.04557933]
[1743340903091,0.27102044,83268.0,83267.0,0.04557933]
[1743340903893,0.27102044,83268.0,83267.0,0.04757933]
[1743340904276,0.27102044,83268.0,83267.0,0.04957933]
[1743340904500,0.3134138,83268.0,83267.0,0.04957933]
[1743340906535,0.29459036,83268.0,83267.0,0.04957933]
[1743340908582,0.29459036,83268.0,83267.0,0.04991653]
[1743340909631,0.31341437,83268.0,83267.0,0.04991653]
[1743340909769,0.31341437,83268.0,83267.0,0.00441653]
[1743340910176,0.61341437,83268.0,83267.0,0.00441653]
[1743340911238,0.61341437,83268.0,83267.0,0.00241653]
[1743340911778,0.61341437,83268.0,83267.0,0.00041653]
[1743340912056,0.61341437,83268.0,83267.0,0.00141653]
[1743340912279,0.61341437,83268.0,83267.0,0.00041653]
[1743340913046,0.61341437,83268.0,83267.0,0.00141653]
[1743340913678,0.61341437,83268.0,83267.0,0.00041653]
[1743340914089,1.02971437,83268.0,83267.0,0.00041653]
[1743340916371,1.01089036,83268.0,83267.0,0.00041653]
[1743340919803,0.61707125,83268.0,83267.0,0.00041653]
[1743340921062,0.63589595,83268.0,83267.0,0.00041653]
[1743340921676,0.34130559,83268.0,83267.0,0.00041653]
[1743340921884,0.34130559,83268.0,83267.0,0.12751653]
[1743340922270,0.58149359,83268.0,83267.0,0.12751653]
[1743340922470,0.59350259,83268.0,83267.0,0.12751653]
[1743340923321,0.59350259,83268.0,83267.0,0.13574944]
[1743340923548,0.70569175,83268.0,83267.0,0.13574944]
[1743340924325,0.59350259,83268.0,83267.0,0.13574944]
[1743340927389,0.57467789,83268.0,83267.0,0.13574944]
[1743340930215,0.59350176,83268.0,83267.0,0.13574944]
[1743340933214,0.35331376,83268.0,83267.0,0.13574944]
[1743340934869,0.34130476,83268.0,83267.0,0.14775844]
[1743340935093,0.04130476,83268.0,83267.0,0.14775844]
[1743340936279,0.04130476,83268.0,83267.0,0.13574944]
[1743340936480,0.02248089,83268.0,83267.0,0.13574944]
[1743340936850,0.02248089,83268.0,83267.0,0.13774944]
[1743340937050,0.02248089,83268.0,83267.0,0.13974944]
[1743340938034,0.06658949,83268.0,83267.0,0.13974944]
[1743340939235,0.02248089,83268.0,83267.0,0.13974944]
[1743340939814,0.04130441,83268.0,83267.0,0.13974944]
[1743340940358,0.04130441,83268.0,83267.0,0.15175844]
[1743340944341,0.04130441,83268.0,83267.0,0.16374298]
[1743340946435,0.02248089,83268.0,83267.0,0.16374298]
[1743340948247,0.02248089,83268.0,83267.0,0.18068567]
[1743340948418,0.02248089,83268.0,83267.0,0.29856866]
[1743340948987,0.02248089,83268.0,83267.0,0.29656866]
[1743340949387,0.02248089,83268.0,83267.0,0.29856866]
[1743340949798,0.02248089,83268.0,83267.0,0.31145849]
[1743340950208,0.02248089,83268.0,83267.0,0.30745849]
[1743340950411,0.02248089,83268.0,83267.0,0.30345849]
[1743340950680,0.02248089,83268.0,83267.0,0.30845849]
[1743340950817,0.0001687,83288.0,83287.0,0.012006]
[1743340951223,0.0189884,83288.0,83287.0,0.24818635]
[1743340951571,0.0189884,83288.0,83287.0,0.26019235]
[1743340951889,0.04149081,83288.0,83287.0,0.26019235]
[1743340953664,0.04149081,83288.0,83287.0,0.26219235]
[1743340955637,0.04149081,83288.0,83287.0,0.26252975]
[1743340956389,0.02267111,83288.0,83287.0,0.26252975]
[1743340959459,0.02267111,83288.0,83287.0,0.25052375]
[1743340959669,0.04149101,83288.0,83287.0,0.01139075]
[1743340959869,0.29602463,83288.0,83287.0,0.01139075]
[1743340960048,0.29362701,83288.0,83287.0,0.0033374]
[1743340960444,0.05349701,83288.0,83287.0,0.0013374]
[1743340960647,0.04149101,83288.0,83287.0,0.0003374]
[1743340961229,0.04149101,83288.0,83287.0,0.00839075]
[1743340961450,0.12606491,83288.0,83287.0,0.00839075]
[1743340961647,0.12706491,83288.0,83287.0,0.00839075]
[1743340962059,0.04249101,83288.0,83287.0,0.00839075]
[1743340962937,0.05449701,83288.0,83287.0,0.0003374]
[1743340963136,0.05689463,83288.0,83287.0,0.0003374]
[1743340963990,0.35689463,83288.0,83287.0,0.0003374]
[1743340964202,0.35449701,83288.0,83287.0,0.0003374]
[1743340964451,0.47467551,83288.0,83287.0,0.0003374]
[1743340965270,0.51064602,83288.0,83287.0,0.0003374]
[1743340965921,0.39046752,83288.0,83287.0,0.0003374]
[1743340966346,0.33567711,83288.0,83287.0,0.0003374]
[1743340968374,0.37165457,83288.0,83287.0,0.0003374]
[1743340969580,0.35449933,83288.0,83287.0,0.0003374]
[1743340970223,0.35349933,83288.0,83287.0,0.0003374]
[1743340970472,0.47357806,83288.0,83287.0,0.0003374]
[1743340970812,0.47757806,83288.0,83287.0,0.0003374]
[1743340971214,0.47557806,83288.0,83287.0,0.0003374]
[1743340971416,0.47757806,83288.0,83287.0,0.0003374]
[1743340971999,0.47557806,83288.0,83287.0,0.0003374]
[1743340972496,0.47757806,83288.0,83287.0,0.0003374]
[1743340974494,0.35749933,83288.0,83287.0,0.0003374]
[1743340976519,0.33867711,83288.0,83287.0,0.0003374]
[1743340978081,0.33778797,83288.0,83287.0,0.0003374]
[1743340981185,0.33795657,83288.0,83287.0,0.0003374]
[1743340989497,0.35677834,83288.0,83287.0,0.0003374]
[1743340990377,0.88559497,83288.0,83287.0,0.0003374]
[1743340994778,0.77307834,83288.0,83287.0,0.0003374]
[1743340996469,0.75425657,83288.0,83287.0,0.0003374]
[1743340999952,0.83075657,83288.0,83287.0,0.0003374]
[1743341000473,0.012009,83268.0,83267.0,0.08291653]
[1743341000890,0.252197,83268.0,83267.0,0.09114944]
[1743341001230,0.252197,83268.0,83267.0,0.08291653]
[1743341001846,0.36397341,83268.0,83267.0,0.08291653]
[1743341002075,0.38575538,83268.0,83267.0,0.00041653]
[1743341002248,0.40457888,83268.0,83267.0,0.00041653]
[1743341002879,0.40457888,83268.0,83267.0,0.00341653]
[1743341003630,0.40457888,83268.0,83267.0,0.00441653]
[1743341003842,0.40457888,83268.0,83267.0,0.00141653]
[1743341004045,0.70457888,83268.0,83267.0,0.00241653]
[1743341005387,0.68575538,83268.0,83267.0,0.00241653]
[1743341005589,0.68575538,83268.0,83267.0,0.00141653]
[1743341005792,0.66397341,83268.0,83267.0,0.00141653]
[1743341006018,0.66397341,83268.0,83267.0,0.00041653]
[1743341006330,0.66397341,83268.0,83267.0,0.00141653]
[1743341006488,0.66397341,83268.0,83267.0,0.00241653]
[1743341007737,1.15717341,83268.0,83267.0,0.00241653]
[1743341007934,1.29053341,83268.0,83267.0,0.00241653]
[1743341009356,1.29053341,83268.0,83267.0,0.00141653]
[1743341009566,1.29968054,83268.0,83267.0,0.00141653]
[1743341009763,1.30068054,83268.0,83267.0,0.00041653]
[1743341010359,1.30268054,83268.0,83267.0,0.00041653]
[1743341010560,1.30168054,83268.0,83267.0,0.00041653]
[1743341010963,1.30868054,83268.0,83267.0,0.00041653]
[1743341011186,1.50832654,83268.0,83267.0,5.3e-07]
[1743341011408,1.31349754,83268.0,83267.0,5.3e-07]
[1743341012173,1.31149754,83268.0,83267.0,5.3e-07]
[1743341012460,1.31549754,83268.0,83267.0,5.3e-07]
[1743341012851,1.33394074,83268.0,83267.0,5.3e-07]
[1743341013067,1.36094054,83268.0,83267.0,5.3e-07]
[1743341013422,1.36494054,83268.0,83267.0,5.3e-07]
[1743341013830,0.97350447,83265.0,83264.0,0.0003372]
[1743341014034,1.6776183,83265.0,83264.0,0.0003372]
[1743341014654,1.6094403,83265.0,83264.0,0.0003372]
[1743341015308,1.65371163,83265.0,83264.0,0.0003372]
[1743341015841,1.6124403,83265.0,83264.0,0.0003372]
[1743341016237,1.63486257,83265.0,83264.0,0.0003372]
[1743341016444,1.39228657,83265.0,83264.0,0.0003372]
[1743341016672,1.38728657,83265.0,83264.0,0.0003372]
[1743341016849,1.39528657,83265.0,83264.0,0.0003372]
[1743341017077,1.52860657,83265.0,83264.0,0.0003372]
[1743341019065,1.54743441,83265.0,83264.0,0.0003372]
[1743341020245,1.54243441,83265.0,83264.0,0.0003372]
[1743341020676,1.47718341,83265.0,83264.0,0.0003372]
[1743341021151,1.50218321,83265.0,83264.0,0.0003372]
[1743341024349,1.49718321,83265.0,83264.0,0.0003372]
[1743341024534,1.52659307,83265.0,83264.0,0.0003372]
[1743341025149,0.3420088,83264.0,83263.0,2e-07]
[1743341025392,1.34311463,83264.0,83263.0,2e-07]
[1743341025611,0.012011,83252.0,83251.0,0.000121]
[1743341026328,0.03443327,83252.0,83251.0,0.000121]
[1743341027001,0.57466727,83252.0,83251.0,0.000121]
[1743341029021,0.552245,83252.0,83251.0,0.000121]
[1743341029170,0.6579173,83252.0,83251.0,0.0004584]
[1743341031314,1.07421657,83252.0,83251.0,0.0004584]
[1743341033127,1.07421657,83252.0,83251.0,0.0830584]
[1743341033493,0.96854427,83252.0,83251.0,0.1282584]
[1743341034671,1.03448791,83252.0,83251.0,0.0004584]
[1743341034877,1.03448791,83252.0,83249.0,0.0003372]
[1743341034878,0.552252,83250.0,83249.0,6e-07]
[1743341035198,0.552252,83250.0,83241.0,6e-07]
[1743341035199,0.5822758,83242.0,83241.0,6e-07]
[1743341035446,0.83572063,83242.0,83241.0,6e-07]
[1743341036150,0.85455507,83242.0,83241.0,6e-07]
[1743341036494,0.84485524,83242.0,83241.0,2.3e-07]
[1743341036727,1.36208457,83242.0,83241.0,2.3e-07]
[1743341036976,1.39349348,83242.0,83241.0,2.3e-07]
[1743341037858,1.39749348,83242.0,83241.0,2.3e-07]
[1743341038063,1.40049348,83242.0,83241.0,2.3e-07]
[1743341038277,0.552315,83229.0,83228.0,0.0003372]
[1743341038509,1.43088333,83229.0,83228.0,0.000445]
[1743341039131,1.39019733,83229.0,83228.0,0.000445]
[1743341039342,1.37935633,83229.0,83228.0,0.000445]
[1743341039543,1.09875831,83229.0,83228.0,0.000445]
[1743341040623,1.28835131,83229.0,83228.0,0.000445]
[1743341041762,1.25925131,83229.0,83228.0,0.000445]
[1743341042813,1.09875831,83229.0,83228.0,0.000445]
[1743341046626,1.07992133,83229.0,83228.0,0.000445]
[1743341047656,0.96861427,83229.0,83228.0,0.000445]
[1743341049516,0.98745029,83229.0,83228.0,0.000445]
[1743341056524,0.96861427,83229.0,83228.0,0.000445]
[1743341059382,0.98745097,83229.0,83228.0,0.000445]
[1743341060383,0.98945097,83229.0,83228.0,0.000445]
[1743341060569,1.1097358,83229.0,83228.0,0.000445]
[1743341060978,1.1087358,83229.0,83228.0,0.000445]
[1743341061134,1.1097358,83229.0,83228.0,0.000445]
[1743341061539,1.13362529,83229.0,83228.0,0.000445]
[1743341062172,1.13562529,83229.0,83228.0,0.000445]
[1743341062676,1.1117358,83229.0,83228.0,0.000445]
[1743341064300,1.1165548,83229.0,83228.0,0.000445]
[1743341066525,1.0977181,83229.0,83228.0,0.000445]
[1743341066732,1.11063327,83229.0,83228.0,0.078545]
[1743341067161,0.97743327,83229.0,83228.0,0.078545]
[1743341069329,0.99626926,83229.0,83228.0,0.078545]
[1743341076353,0.97743327,83229.0,83228.0,0.078545]
[1743341078642,0.97469196,83229.0,83228.0,0.078545]
[1743341079508,0.69352759,83229.0,83228.0,0.078545]
[1743341079660,0.68870859,83229.0,83228.0,0.078545]
[1743341079862,0.98870859,83229.0,83228.0,0.078545]
[1743341080064,0.68870859,83229.0,83228.0,0.078545]
[1743341080274,0.68870859,83229.0,83228.0,0.376463]
[1743341080275,0.02283563,83229.0,83228.0,0.376463]
[1743341080454,0.02283563,83229.0,83228.0,0.3850463]
[1743341081283,0.02083563,83229.0,83228.0,0.3850463]
[1743341081487,0.01983563,83229.0,83228.0,0.3850463]
[1743341081944,0.02083563,83229.0,83228.0,0.3850463]
[1743341085182,0.02083563,83229.0,83228.0,0.1327283]
[1743341085938,0.02083563,83229.0,83228.0,0.1447433]
[1743341086114,0.01983563,83229.0,83228.0,0.1447433]
[1743341086705,0.252303,83234.0,83229.0,0.0828]
[1743341087460,0.27359276,83234.0,83229.0,0.0828]
[1743341087811,0.27359276,83234.0,83229.0,0.3231]
[1743341087968,0.27459276,83234.0,83229.0,0.3231]
[1743341088173,0.27559276,83234.0,83229.0,0.3231]
[1743341088957,0.254303,83234.0,83229.0,0.3231]
[1743341089156,0.254303,83234.0,83230.0,0.00856532]
[1743341089397,0.002,83234.0,83230.0,0.00856532]
[1743341089581,0.01883353,83233.0,83230.0,0.00856532]
[1743341090005,0.01883353,83233.0,83231.0,0.240295]
[1743341090403,0.01883353,83233.0,83232.0,0.00854735]
[1743341093057,0.01883353,83233.0,83232.0,0.14896135]
[1743341095048,0.01883353,83233.0,83232.0,0.14996135]
[1743341095450,0.0001687,83241.0,83240.0,0.137213]
[1743341096318,0.0001687,83241.0,83240.0,0.377482]
[1743341096678,0.0011687,83241.0,83240.0,0.377482]
[1743341096902,0.0021687,83241.0,83240.0,0.377482]
[1743341098847,0.01426679,83241.0,83240.0,0.377482]
[1743341099974,0.0330979,83241.0,83240.0,0.377482]
[1743341100239,0.02099981,83241.0,83240.0,0.377482]
[1743341101446,0.03301281,83241.0,83240.0,0.1252]
[1743341101836,0.02099981,83241.0,83240.0,0.1252]
[1743341101984,0.02099981,83241.0,83240.0,0.0492]
[1743341104587,0.10239356,83241.0,83240.0,0.0492]
[1743341105067,0.10239356,83241.0,83232.0,0.13374735]
[1743341105068,0.252303,83233.0,83232.0,0.13374735]
[1743341105277,0.252303,83233.0,83232.0,0.05774735]
[1743341106483,0.252303,83233.0,83232.0,0.05874735]
[1743341106900,0.252303,83233.0,83232.0,0.00954735]
[1743341107105,0.252303,83233.0,83232.0,0.001]
[1743341107622,0.2515409,83233.0,83232.0,0.001]
[1743341107921,0.252311,83230.0,83228.0,0.000445]
[1743341109068,0.552311,83230.0,83228.0,0.000445]
[1743341109328,0.553311,83230.0,83228.0,0.000445]
[1743341109777,0.552311,83230.0,83228.0,0.000445]
[1743341110297,0.57114619,83230.0,83228.0,0.000445]
[1743341110655,0.98744546,83230.0,83228.0,0.000445]
[1743341111085,0.98844546,83230.0,83228.0,0.000445]
[1743341111292,1.10873029,83230.0,83228.0,0.000445]
[1743341111433,1.11073029,83230.0,83228.0,0.000445]
[1743341111877,0.99044546,83230.0,83228.0,0.000445]
[1743341112973,0.99526346,83230.0,83228.0,0.000445]
[1743341115185,0.99044546,83230.0,83229.0,0.1311374]
[1743341116017,0.97161027,83230.0,83229.0,0.1311374]
[1743341119175,0.99044478,83230.0,83229.0,0.1311374]
[1743341124976,0.99037424,83230.0,83229.0,0.1311374]
[1743341127006,0.97153973,83230.0,83229.0,0.1311374]
[1743341127931,0.97153973,83230.0,83229.0,0.0497374]
[1743341128135,1.05088358,83230.0,83229.0,0.0003374]
[1743341128339,0.97153973,83230.0,83229.0,0.0003374]
[1743341129930,0.99037508,83230.0,83229.0,0.0003374]
[1743341135973,0.97153973,83230.0,83229.0,0.0003374]
[1743341138166,0.97170833,83230.0,83229.0,0.0003374]
[1743341139620,0.99054409,83230.0,83229.0,0.0003374]
[1743341140961,1.08615532,83230.0,83229.0,0.0003374]
[1743341146469,1.06731956,83230.0,83229.0,0.0003374]
[1743341149436,1.0861553,83230.0,83229.0,0.0003374]
[1743341153346,0.99054407,83230.0,83229.0,0.0003374]
[1743341156622,0.97170833,83230.0,83229.0,0.0003374]
[1743341159732,0.99054403,83230.0,83229.0,0.0003374]
[1743341161797,1.07314403,83230.0,83229.0,0.0003374]
[1743341161995,1.13911183,83230.0,83229.0,0.0003374]
[1743341162233,1.07314403,83230.0,83229.0,0.0003374]
[1743341162641,1.19342886,83230.0,83229.0,0.0003374]
[1743341165710,1.17459316,83230.0,83229.0,0.0003374]
[1743341169050,1.19342994,83230.0,83229.0,0.0003374]
[1743341169674,1.19842994,83230.0,83229.0,0.0003374]
[1743341169905,1.33158994,83230.0,83229.0,0.0003374]
[1743341171468,1.33058994,83230.0,83229.0,0.0003374]
[1743341172107,1.33540894,83230.0,83229.0,0.0003374]
[1743341172309,1.33440894,83230.0,83229.0,0.0003374]
[1743341172488,1.33340894,83230.0,83229.0,0.0003374]
[1743341172832,1.33740894,83230.0,83229.0,0.0003374]
[1743341175575,1.25480894,83230.0,83229.0,0.0003374]
[1743341176529,1.23597216,83230.0,83229.0,0.0003374]
[1743341177489,1.11568733,83230.0,83229.0,0.0003374]
[1743341177662,1.11068733,83230.0,83229.0,0.0003374]
[1743341179561,1.12952363,83230.0,83229.0,0.0003374]
[1743341181235,0.99636363,83230.0,83229.0,0.0003374]
[1743341184476,0.3420148,83229.0,83226.0,4e-07]
[1743341184697,0.012016,83219.0,83218.0,0.000337]
[1743341184932,0.97104189,83219.0,83218.0,0.000337]
[1743341185142,1.10180427,83219.0,83218.0,0.000337]
[1743341185604,1.13795227,83219.0,83218.0,0.000337]
[1743341185784,1.10180427,83219.0,83218.0,0.000337]
[1743341185979,1.2230891,83219.0,83218.0,0.000337]
[1743341186532,1.2280891,83219.0,83218.0,0.000337]
[1743341187269,1.23606756,83219.0,83218.0,0.000337]
[1743341187658,1.23706756,83219.0,83218.0,0.000337]
[1743341188005,1.23906756,83219.0,83218.0,0.000337]
[1743341188461,1.26406736,83219.0,83218.0,0.000337]
[1743341189893,1.27650973,83219.0,83218.0,0.000337]
[1743341190399,1.27052891,83219.0,83218.0,0.000337]
[1743341190673,1.28254491,83219.0,83218.0,0.000337]
[1743341192953,1.28254491,83219.0,83218.0,1e-06]
[1743341193957,1.28154491,83219.0,83218.0,1e-06]
[1743341194156,1.28354491,83219.0,83218.0,1e-06]
[1743341194626,1.28154491,83219.0,83218.0,1e-06]
[1743341194869,1.28354491,83219.0,83218.0,1e-06]
[1743341195374,1.3003849,83219.0,83218.0,1e-06]
[1743341195774,0.012017,83212.0,83204.0,0.0499372]
[1743341195984,0.96871139,83212.0,83204.0,0.0499372]
[1743341196180,1.02400285,83212.0,83204.0,0.0499372]
[1743341197531,1.02500285,83212.0,83204.0,0.0003372]
[1743341197940,1.02700285,83212.0,83204.0,0.0003372]
[1743341198362,0.552388,83205.0,83204.0,0.0003372]
[1743341198563,0.6084036,83205.0,83204.0,0.0003372]
[1743341199234,0.552388,83205.0,83204.0,0.0790372]
[1743341199456,0.57122937,83205.0,83204.0,0.0790372]
[1743341199661,0.57122937,83205.0,83204.0,0.0696372]
[1743341200095,0.552388,83205.0,83204.0,0.0696372]
[1743341200473,0.5642661,83205.0,83204.0,0.0696372]
[1743341201035,0.70339174,83205.0,83204.0,0.0696372]
[1743341201249,0.312018,83204.0,83200.0,0.0003372]
[1743341201411,0.72831627,83204.0,83200.0,0.0003372]
[1743341202834,0.72831627,83204.0,83200.0,0.0790372]
[1743341209388,0.74715739,83204.0,83200.0,0.0790372]
[1743341211116,0.74732609,83204.0,83200.0,0.0790372]
[1743341211501,0.83369974,83204.0,83200.0,0.0790372]
[1743341211700,0.83369974,83204.0,83200.0,0.0003372]
[1743341212103,0.5524,83201.0,83200.0,8e-07]
[1743341213223,0.96869827,83201.0,83200.0,8e-07]
[1743341214023,1.07029807,83201.0,83200.0,8e-07]
[1743341214270,1.16122485,83201.0,83200.0,8e-07]
[1743341215566,1.29442485,83201.0,83200.0,8e-07]
[1743341215764,1.29542485,83201.0,83200.0,8e-07]
[1743341216362,0.552451,83184.0,83183.0,0.0003374]
[1743341216539,0.96874927,83184.0,83183.0,0.0003374]
[1743341216744,1.0890341,83184.0,83183.0,0.0003374]
[1743341217145,1.0890341,83184.0,83180.0,0.0787]
[1743341217355,1.0890341,83184.0,83179.0,0.0474]
[1743341217356,0.552464,83180.0,83179.0,0.0474]
[1743341217576,0.552464,83180.0,83179.0,0.04787212]
[1743341217800,0.60775546,83180.0,83179.0,0.04787212]
[1743341219757,0.63551172,83180.0,83179.0,0.00047212]
[1743341221056,1.05180999,83180.0,83179.0,1.2e-07]
[1743341221254,1.07680979,83180.0,83164.0,0.1282]
[1743341221442,0.5525,83168.0,83167.0,0.00044515]
[1743341221642,0.6342005,83168.0,83167.0,0.00044515]
[1743341222095,0.57134886,83168.0,83167.0,0.00044515]
[1743341223438,0.57134886,83168.0,83167.0,1.5e-07]
[1743341224096,0.57134886,83168.0,83167.0,0.00016885]
[1743341224558,0.57234886,83168.0,83167.0,0.00016885]
[1743341224714,0.57234886,83168.0,83167.0,8.5e-07]
[1743341224917,1.10893196,83168.0,83167.0,8.5e-07]
[1743341226401,1.0900831,83168.0,83167.0,8.5e-07]
[1743341229610,1.10893386,83168.0,83167.0,8.5e-07]
[1743341230884,1.24217386,83168.0,83167.0,8.5e-07]
[1743341232703,0.98864903,83168.0,83167.0,8.5e-07]
[1743341232921,1.12188903,83168.0,83167.0,8.5e-07]
[1743341236515,1.10303827,83168.0,83167.0,8.5e-07]
[1743341239354,1.1218893,83168.0,83167.0,8.5e-07]
[1743341240427,1.1208893,83168.0,83167.0,8.5e-07]
[1743341240634,1.24117413,83168.0,83167.0,8.5e-07]
[1743341240813,1.24217413,83168.0,83167.0,8.5e-07]
[1743341241051,1.24317413,83168.0,83167.0,8.5e-07]
[1743341246548,1.2243231,83168.0,83167.0,8.5e-07]
[1743341246933,1.2604921,83168.0,83167.0,8.5e-07]
[1743341248371,1.2608295,83168.0,83167.0,8.5e-07]
[1743341249768,1.27967899,83168.0,83167.0,8.5e-07]
[1743341250495,1.28467899,83168.0,83167.0,8.5e-07]
[1743341251061,1.28367899,83168.0,83167.0,8.5e-07]
[1743341251485,1.28267899,83168.0,83167.0,8.5e-07]
[1743341251859,1.30967879,83168.0,83167.0,8.5e-07]
[1743341252258,1.31067879,83168.0,83167.0,8.5e-07]
[1743341253428,0.552549,83152.0,83151.0,0.004]
[1743341253634,0.96884642,83152.0,83151.0,0.00414168]
[1743341253824,0.96884642,83152.0,83151.0,6.8e-07]
[1743341254183,1.02387707,83152.0,83151.0,6.8e-07]
[1743341255597,1.03002422,83152.0,83151.0,6.8e-07]
[1743341255797,1.15030905,83152.0,83151.0,6.8e-07]
[1743341256858,0.71427197,83152.0,83151.0,6.8e-07]
[1743341257288,0.72612884,83152.0,83151.0,6.8e-07]
[1743341257491,1.02612884,83152.0,83151.0,6.8e-07]
[1743341258938,1.0449815,83152.0,83151.0,6.8e-07]
[1743341260766,1.0699813,83152.0,83151.0,0.00016938]
[1743341260975,1.16526633,83152.0,83151.0,0.00016938]
[1743341261175,1.0449815,83152.0,83151.0,0.07736938]
[1743341262385,1.0449815,83152.0,83151.0,0.06236938]
[1743341266563,1.02612884,83152.0,83151.0,0.06236938]
[1743341269556,1.04498134,83152.0,83151.0,0.06236938]
[1743341269732,1.16526617,83152.0,83151.0,0.06236938]
[1743341270379,0.74498134,83152.0,83151.0,0.11076938]
[1743341270557,0.70880334,83152.0,83151.0,0.11076938]
[1743341270876,1.00880334,83152.0,83151.0,0.11076938]
[1743341272222,0.99955579,83152.0,83151.0,0.11076938]
[1743341273082,0.99955579,83152.0,83151.0,0.11093818]
[1743341273287,1.00871723,83152.0,83151.0,0.11093818]
[1743341273485,1.00905483,83152.0,83151.0,0.11093818]
[1743341273685,1.12933966,83152.0,83151.0,0.11093818]
[1743341274911,0.252567,83146.0,83145.0,0.0003374]
[1743341275120,0.67285183,83146.0,83145.0,0.00038462]
[1743341275271,0.552567,83146.0,83145.0,0.00038462]
[1743341275681,0.57506884,83146.0,83145.0,0.00038462]
[1743341279611,0.59392186,83146.0,83145.0,0.00038462]
[1743341280633,1.01021928,83146.0,83145.0,0.00038462]
[1743341286553,0.99136626,83146.0,83145.0,0.00038462]
[1743341286757,1.11165109,83146.0,83145.0,0.00038462]
[1743341289788,1.13050436,83146.0,83145.0,0.00038462]
[1743341292339,1.10800252,83146.0,83145.0,0.00038462]
[1743341296677,1.08914925,83146.0,83145.0,0.00038462]
[1743341298871,0.96886442,83146.0,83145.0,0.00038462]
[1743341299591,0.98771756,83146.0,83145.0,0.00038462]
[1743341300677,0.98771756,83146.0,83145.0,0.12258462]
[1743341303784,0.98771756,83146.0,83145.0,0.04708462]
[1743341303985,0.98771756,83146.0,83145.0,0.00038462]
[1743341304187,1.10800239,83146.0,83145.0,0.00038462]
[1743341306503,1.08914925,83146.0,83145.0,0.00038462]
[1743341307001,1.11414905,83146.0,83145.0,0.00038462]
[1743341307232,1.19324905,83146.0,83145.0,6.2e-07]
[1743341308257,1.19824905,83146.0,83145.0,6.2e-07]
[1743341308557,0.5526,83135.0,83134.0,0.0004172]
[1743341308760,0.96889742,83135.0,83134.0,0.00046435]
[1743341309581,0.98775242,83135.0,83134.0,0.00046435]
[1743341310425,0.98875242,83135.0,83134.0,0.00046435]
[1743341311169,0.98975242,83135.0,83134.0,0.00046435]
[1743341311554,1.10089068,83135.0,83134.0,0.00046435]
[1743341315950,1.08203568,83135.0,83134.0,0.00046435]
[1743341319309,1.10089086,83135.0,83134.0,0.00046435]
[1743341330973,0.9897526,83135.0,83134.0,0.04926435]
[1743341335775,0.97089742,83135.0,83134.0,0.04926435]
[1743341336802,0.67089742,83135.0,83134.0,0.04926435]
[1743341337006,0.67089742,83135.0,83134.0,0.13056435]
[1743341337428,0.97089742,83135.0,83134.0,0.13056435]
[1743341338717,0.98975138,83135.0,83134.0,0.13056435]
[1743341339342,1.11003621,83135.0,83134.0,0.13056435]
[1743341340167,1.11003621,83135.0,83134.0,0.00046435]
[1743341341181,1.13255131,83135.0,83134.0,0.00046435]
[1743341342460,0.98975138,83135.0,83134.0,0.00046435]
[1743341348789,0.97089742,83135.0,83134.0,0.00046435]
[1743341350236,1.01372232,83135.0,83134.0,0.00046435]
[1743341353066,0.552621,83128.0,83127.0,0.0003372]
[1743341353257,0.6343477,83128.0,83127.0,0.00038832]
[1743341354022,0.552655,83117.0,83116.0,0.0464]
[1743341354354,0.96895242,83117.0,83116.0,0.04652509]
[1743341354779,1.00011225,83117.0,83116.0,0.04652509]
[1743341355574,1.00111225,83117.0,83116.0,0.04652509]
[1743341356639,1.00211225,83117.0,83116.0,0.04652509]
[1743341359436,1.00211225,83117.0,83116.0,0.04669369]
[1743341377920,1.00211225,83117.0,83100.0,0.252704]
[1743341377921,0.012034,83092.0,83091.0,0.01386227]
[1743341378130,0.96902842,83092.0,83091.0,0.0019697]
[1743341378357,1.08931325,83092.0,83091.0,0.01253873]
[1743341378566,0.41629742,83092.0,83091.0,0.13274219]
[1743341378777,0.66902842,83092.0,83091.0,0.13274219]
[1743341378989,0.66902842,83092.0,83091.0,0.14283873]
[1743341379196,0.67002842,83092.0,83091.0,0.13274219]
[1743341379606,0.67002842,83092.0,83091.0,0.14283873]
[1743341379802,0.67002842,83092.0,83091.0,0.13274219]
[1743341380608,0.67102842,83092.0,83091.0,0.13274219]
[1743341380751,0.43033142,83092.0,83091.0,0.13274219]
[1743341380957,0.44919371,83092.0,83091.0,0.14283873]